lending/lending_fUSD_20260206
["ID","MTS","AMOUNT","RATE_DAILY","PERIOD"]
[404674026,1770413790719,10000.01,8.628e-05,2]
[404674027,1770413790743,10000.01,8.628e-05,2]
[404674028,1770413790766,5000.01,8.628e-05,2]
[404674029,1770413790790,5000.01,8.628e-05,2]
[404674030,1770413797109,-5000.01,8.628e-05,2]
[404674031,1770413797243,-5000.01,8.628e-05,2]
[404674032,1770413797480,-5000.01,8.628e-05,2]
[404674033,1770413797579,-5000.01,8.628e-05,2]
[404674034,1770413797694,-5000.01,8.628e-05,2]
[404674035,1770413797827,-5000.01,8.628e-05,2]
[404674036,1770413797946,-5000.01,8.628e-05,2]
[404674037,1770413798056,-5000.01,8.628e-05,2]
[404674038,1770413798215,-5000.01,8.628e-05,2]
[404674039,1770413798327,-5000.01,8.628e-05,2]
[404674040,1770413821998,300.0,8.627e-05,2]
[404674041,1770413850833,7432.604434,8.178e-05,2]
[404674042,1770413928530,2005.0,0.00035616,120]
[404674043,1770413941972,150.0,8.627e-05,2]
[404674044,1770413954837,210.08,8.628e-05,2]
[404674045,1770413955145,210.08,0.00010628,7]
[404674046,1770413955484,150.0,8.601e-05,2]
[404674047,1770413955983,150.0,8.601e-05,2]
[404674048,1770413985166,1607.325566,8.528e-05,2]
[404674049,1770413985191,892.674434,8.528e-05,2]
[404674050,1770414001149,300.0,8.627e-05,2]
[404674051,1770414001181,300.0,8.627e-05,2]
[404674052,1770414001213,265.0,8.627e-05,2]
[404674053,1770414001493,1200.0,8.627e-05,2]
[404674054,1770414004151,222.0,8.628e-05,2]
[404674056,1770414093375,1424.391,8.456e-05,2]
[404674057,1770414093448,150.172,8.456e-05,2]
[404674058,1770414097705,246.65308818,0.00035616,120]
[404674059,1770414114718,5245.772566,8.528e-05,2]
[404674060,1770414114745,10000.01,8.528e-05,2]
[404674061,1770414114771,10000.01,8.528e-05,2]
[404674062,1770414114799,10000.01,8.528e-05,2]
[404674063,1770414114825,10000.01,8.528e-05,2]
[404674064,1770414114851,10000.01,8.528e-05,2]
[404674065,1770414114876,10000.01,8.528e-05,2]
[404674066,1770414114902,10000.01,8.528e-05,2]
[404674067,1770414114927,5000.01,8.528e-05,2]
[404674068,1770414114951,5000.01,8.528e-05,2]
[404674069,1770414114975,5000.01,8.528e-05,2]
[404674070,1770414115000,5000.01,8.528e-05,2]
[404674071,1770414115024,5000.01,8.528e-05,2]
[404674072,1770414115048,5000.01,8.528e-05,2]
[404674073,1770414115071,5000.01,8.528e-05,2]
[404674074,1770414115095,5000.01,8.528e-05,2]
[404674075,1770414115118,5000.01,8.528e-05,2]
[404674076,1770414115140,5000.01,8.528e-05,2]
[404674077,1770414115166,10000.01,8.528e-05,2]
[404674078,1770414115192,10000.01,8.528e-05,2]
[404674079,1770414124669,3198.0628683,8.428e-05,2]
[404674080,1770414151758,500.0,8.527e-05,2]
[404674081,1770414151794,346.48530242,8.527e-05,2]
[404674082,1770414151875,623.76961159,8.527e-05,2]
[404674083,1770414153402,500.0,8.527e-05,2]
[404674084,1770414153450,500.0,8.527e-05,2]
[404674085,1770414153489,550.58735973,8.527e-05,2]
[404674086,1770414153525,500.0,8.527e-05,2]
[404674087,1770414163353,1594.98212114,8.528e-05,2]
[404674088,1770414179019,221.28848559,8.527e-05,2]
[404674089,1770414179058,500.0,8.527e-05,2]
[404674090,1770414179091,500.0,8.527e-05,2]
[404674091,1770414179126,464.83425123,8.527e-05,2]
[404674092,1770414179150,35.16574877,8.527e-05,2]
[404674093,1770414179392,500.0,8.527e-05,2]
[404674094,1770414179587,481.19182734,8.527e-05,2]
[404674095,1770414179713,187.37174388,8.527e-05,2]
[404674096,1770414181205,300.0,8.527e-05,2]
[404674097,1770414184717,300.0,8.528e-05,2]
[404674098,1770414188675,160.32704842,8.528e-05,2]
[404674099,1770414200964,702.25719562,8.528e-05,2]
[404674100,1770414201633,500.0,8.527e-05,2]
[404674101,1770414213509,1920.01553027,8.528e-05,2]
[404674102,1770414241190,300.0,8.527e-05,2]
[404674103,1770414277259,151.0,8.525e-05,2]
[404674104,1770414301431,1200.0,8.527e-05,2]
[404674105,1770414306063,242.5397117,8.527e-05,2]
[404674106,1770414319827,500.0,8.527e-05,2]
[404674107,1770414319875,500.0,8.527e-05,2]
[404674108,1770414319912,500.0,8.527e-05,2]
[404674109,1770414319954,500.0,8.527e-05,2]
[404674110,1770414319999,500.0,8.527e-05,2]
[404674111,1770414320034,500.0,8.527e-05,2]
[404674112,1770414320071,20.141194,8.527e-05,2]
[404674113,1770414320096,479.858806,8.527e-05,2]
[404674114,1770414320134,500.0,8.527e-05,2]
[404674115,1770414320173,500.0,8.527e-05,2]
[404674116,1770414320210,500.0,8.527e-05,2]
[404674117,1770414320249,500.0,8.527e-05,2]
[404674118,1770414320297,500.0,8.527e-05,2]
[404674119,1770414320345,500.0,8.527e-05,2]
[404674120,1770414320392,151.18343767,8.527e-05,2]
[404674121,1770414320501,500.0,8.527e-05,2]
[404674122,1770414331874,500.0,8.527e-05,2]
[404674123,1770414331910,500.0,8.527e-05,2]
[404674124,1770414331945,500.0,8.527e-05,2]
[404674125,1770414331980,500.0,8.527e-05,2]
[404674126,1770414332020,500.0,8.527e-05,2]
[404674127,1770414332056,500.0,8.527e-05,2]
[404674128,1770414332092,500.0,8.527e-05,2]
[404674129,1770414332138,500.0,8.527e-05,2]
[404674130,1770414332176,500.0,8.527e-05,2]
[404674131,1770414332211,151.18343767,8.527e-05,2]
[404674132,1770414332246,500.0,8.527e-05,2]
[404674133,1770414332281,500.0,8.527e-05,2]
[404674134,1770414332344,217.78431866,8.527e-05,2]
[404674135,1770414332370,282.21568134,8.527e-05,2]
[404674136,1770414332406,500.0,8.527e-05,2]
[404674137,1770414333698,1280.01035352,8.528e-05,2]
[404674138,1770414368851,500.0,8.527e-05,2]
[404674139,1770414368890,500.0,8.527e-05,2]
[404674140,1770414368928,606.74868098,8.527e-05,2]
[404674141,1770414368966,500.0,8.527e-05,2]
[404674142,1770414369002,500.0,8.527e-05,2]
[404674143,1770414369044,500.0,8.527e-05,2]
[404674144,1770414369089,500.0,8.527e-05,2]
[404674145,1770414369125,500.0,8.527e-05,2]
[404674146,1770414369165,500.0,8.527e-05,2]
[404674147,1770414369206,500.0,8.527e-05,2]
[404674148,1770414369249,500.0,8.527e-05,2]
[404674149,1770414369314,500.0,8.527e-05,2]
[404674150,1770414369360,500.0,8.527e-05,2]
[404674151,1770414369423,500.0,8.527e-05,2]
[404674152,1770414387815,200.0,8.501e-05,2]
[404674153,1770414390677,222.77,8.5e-05,2]
[404674154,1770414421227,300.0,8.527e-05,2]
[404674155,1770414445347,108.26528416,8.527e-05,2]
[404674156,1770414445373,391.73471584,8.527e-05,2]
[404674157,1770414445670,500.0,8.527e-05,2]
[404674158,1770414445980,500.0,8.527e-05,2]
[404674159,1770414446297,500.0,8.527e-05,2]
[404674160,1770414447123,500.0,8.527e-05,2]
[404674161,1770414447444,500.0,8.527e-05,2]
[404674162,1770414447761,500.0,8.527e-05,2]
[404674163,1770414448081,500.0,8.527e-05,2]
[404674164,1770414448454,500.0,8.527e-05,2]
[404674165,1770414448758,500.0,8.527e-05,2]
[404674166,1770414449078,500.0,8.527e-05,2]
[404674167,1770414454475,411.80741695,8.527e-05,2]
[404674168,1770414455079,500.0,8.527e-05,2]
[404674169,1770414474669,500.0,8.527e-05,2]
[404674170,1770414474713,500.0,8.527e-05,2]
[404674171,1770414474767,500.0,8.527e-05,2]
[404674172,1770414474825,500.0,8.527e-05,2]
[404674173,1770414474877,500.0,8.527e-05,2]
[404674174,1770414474934,171.58642373,8.527e-05,2]
[404674175,1770414481516,300.0,8.527e-05,2]
[404674176,1770414483726,5000.0,0.0003561,120]
[404674177,1770414497665,500.0,8.527e-05,2]
[404674178,1770414497987,224.88144348,8.527e-05,2]
[404674179,1770414498014,275.11855652,8.527e-05,2]
[404674180,1770414498303,500.0,8.527e-05,2]
[404674181,1770414498627,500.0,8.527e-05,2]
[404674182,1770414498995,500.0,8.527e-05,2]
[404674183,1770414499337,500.0,8.527e-05,2]
[404674184,1770414499661,500.0,8.527e-05,2]
[404674185,1770414500192,240.22099322,8.527e-05,2]
[404674186,1770414512840,315.47510582,8.527e-05,2]
[404674187,1770414512888,500.0,8.527e-05,2]
[404674188,1770414514346,554.19674974,8.527e-05,2]
[404674189,1770414529251,478.922499,8.178e-05,2]
[404674190,1770414601248,152.0,8.527e-05,2]
[404674191,1770414601418,1200.0,8.527e-05,2]
[404674192,1770414627875,150.0,8.501e-05,2]
[404674203,1770414632021,-2126.40458596,8.528e-05,2]
[404674205,1770414632032,-2674.85455148,8.528e-05,2]
[404674207,1770414632044,-1100.0,8.528e-05,2]
[404674212,1770414632136,-827.04116256,8.528e-05,2]
[404674213,1770414632147,-4386.76901165,8.528e-05,2]
[404674214,1770414632193,-928.52587715,8.528e-05,2]
[404674215,1770414632205,-393.653476,8.528e-05,2]
[404674216,1770414632217,-471.84604647,8.528e-05,2]
[404674230,1770414638114,-12656.34449908,8.528e-05,2]
[404674231,1770414638127,-4176.20288896,8.528e-05,2]
[404674232,1770414638138,-933.27304708,8.528e-05,2]
[404674234,1770414638151,-78000.00000004,8.528e-05,2]
[404674236,1770414638283,-1419053.90582296,8.528e-05,2]
[404674237,1770414638344,-3196.65031194,8.528e-05,2]
[404674362,1770414640192,-865.01,8.528e-05,2]
[404674363,1770414640314,-1974937.81901867,8.528e-05,2]
[404674364,1770414640324,-300.0,8.543e-05,2]
[404674365,1770414640334,-853.34023568,8.558e-05,2]
[404674366,1770414640344,-250.0,8.558e-05,2]
[404674367,1770414640353,-250.0,8.587e-05,2]
[404674368,1770414640363,-300.0,8.592e-05,2]
[404674369,1770414640372,-300.0,8.592e-05,2]
[404674370,1770414640382,-151.0,8.725e-05,2]
[404674371,1770414640391,-1373037.59834894,8.728e-05,2]
[404674372,1770414640401,-500.0,8.728e-05,2]
[404674373,1770414640410,-33301.6812,8.728e-05,2]
[404674374,1770414640423,-1378.87715306,8.848e-05,2]
[404674375,1770414640433,-9999.99,9.38e-05,2]
[404674376,1770414640443,-5274.08,9.38e-05,2]
[404674377,1770414640452,-1680.0,9.38e-05,2]
[404674378,1770414640462,-310.94,9.381e-05,2]
[404674379,1770414640471,-10073.55,9.381e-05,2]
[404674380,1770414640481,-9999.99,9.381e-05,2]
[404674381,1770414640491,-999.99,9.381e-05,2]
[404674382,1770414640500,-9999.99,9.381e-05,2]
[404674383,1770414640510,-299.99,9.381e-05,2]
[404674384,1770414640519,-9999.99,9.381e-05,2]
[404674385,1770414640529,-150.99,9.381e-05,2]
[404674386,1770414640538,-9999.99,9.381e-05,2]
[404674387,1770414640547,-150.99,9.381e-05,2]
[404674388,1770414640557,-250.0,9.381e-05,2]
[404674389,1770414640566,-500.0,9.381e-05,2]
[404674390,1770414640575,-300.0,9.381e-05,2]
[404674391,1770414640585,-150.0,9.726e-05,2]
[404674392,1770414640594,-150.0,9.726e-05,2]
[404674393,1770414640604,-200.0,9.781e-05,2]
[404674394,1770414640614,-55542.19229092,9.887e-05,2]
[404674395,1770414640623,-1059.78,0.0001,2]
[404674396,1770414640632,-151.0,0.0001,2]
[404674397,1770414640641,-151.0,0.0001,2]
[404674398,1770414640650,-151.0,0.0001,2]
[404674399,1770414640659,-151.0,0.0001,2]
[404674401,1770414640668,-151.0,0.0001,2]
[404674403,1770414640677,-151.0,0.0001,2]
[404674404,1770414640686,-151.0,0.0001,2]
[404674405,1770414640695,-151.0,0.0001,2]
[404674406,1770414640705,-151.0,0.0001,2]
[404674407,1770414640714,-151.0,0.0001,2]
[404674408,1770414640723,-151.0,0.0001,2]
[404674409,1770414640732,-151.0,0.0001,2]
[404674410,1770414640742,-151.0,0.0001,2]
[404674411,1770414640751,-151.0,0.0001,2]
[404674412,1770414640760,-151.0,0.0001,2]
[404674413,1770414640770,-151.0,0.0001,2]
[404674414,1770414640779,-151.0,0.0001,2]
[404674415,1770414640788,-151.0,0.0001,2]
[404674416,1770414640797,-151.0,0.0001,2]
[404674417,1770414640810,-151.0,0.0001,2]
[404674418,1770414640819,-151.0,0.0001,2]
[404674419,1770414640828,-151.0,0.0001,2]
[404674420,1770414640838,-151.0,0.0001,2]
[404674421,1770414640848,-151.0,0.0001,2]
[404674422,1770414640858,-151.0,0.0001,2]
[404674423,1770414640867,-151.0,0.0001,2]
[404674424,1770414640877,-151.0,0.0001,2]
[404674425,1770414640887,-151.0,0.0001,2]
[404674426,1770414640896,-151.0,0.0001,2]
[404674427,1770414640905,-1109.17727203,0.0001,2]
[404674428,1770414640915,-1109.17727203,0.0001,2]
[404674429,1770414640925,-1059.78,0.00010274,2]
[404674430,1770414640934,-2351.0,0.00010318,2]
[404674431,1770414640943,-55748.4,0.00010495,2]
[404674432,1770414640952,-1378.87715306,0.00010537,2]
[404674433,1770414640962,-1059.78,0.00010548,2]
[404674434,1770414640972,-232758.4,0.00010741,2]
[404674435,1770414640981,-1059.78,0.00010822,2]
[404674436,1770414640992,-4584.8,0.00010959,2]
[404674437,1770414641001,-150.0,0.00010959,2]
[404674438,1770414641011,-231.94764953,0.00010959,2]
[404674439,1770414641020,-1059.78,0.00011096,2]
[404674440,1770414641029,-5423.73746568,0.00011099,2]
[404674441,1770414641038,-5423.73746566,0.00011099,2]
[404674442,1770414641048,-5423.73746566,0.00011099,2]
[404674443,1770414641058,-5423.73746566,0.00011099,2]
[404674444,1770414641068,-5423.73746566,0.00011099,2]
[404674445,1770414641079,-5423.73746566,0.00011099,2]
[404674446,1770414641089,-5423.73746566,0.00011099,2]
[404674447,1770414641098,-5423.73746566,0.00011099,2]
[404674448,1770414641107,-5423.73746566,0.00011099,2]
[404674449,1770414641118,-5423.73746566,0.00011099,2]
[404674450,1770414641127,-230.49,0.00011233,2]
[404674451,1770414641137,-250.0,0.00011269,2]
[404674452,1770414641147,-2311.0,0.0001135,2]
[404674453,1770414641156,-1059.78,0.0001137,2]
[404674454,1770414641166,-228.15769864,0.00011544,2]
[404674455,1770414641175,-12329.51153523,0.00011588,2]
[404674456,1770414641185,-1059.78,0.00011644,2]
[404674457,1770414641202,-1059.78,0.00011918,2]
[404674458,1770414641217,-518.17,0.00012008,2]
[404674459,1770414641226,-1059.78,0.00012192,2]
[404674460,1770414641236,-1378.87715306,0.00012226,2]
[404674461,1770414641246,-12329.51153523,0.00012378,2]
[404674462,1770414641255,-1059.78,0.00012466,2]
[404674463,1770414641264,-500.0,0.00012585,2]
[404674464,1770414641274,-1059.78,0.0001274,2]
[404674465,1770414641283,-1059.83175409,0.00013014,2]
[404674466,1770414641293,-160.0,0.00013149,2]
[404674467,1770414641302,-12329.51153523,0.00013168,2]
[404674468,1770414641311,-853.34023566,0.00013179,2]
[404674469,1770414641320,-354.61,0.0001321,2]
[404674470,1770414641331,-309.98,0.00013214,2]
[404674471,1770414641340,-600.0,0.00013263,2]
[404674472,1770414641349,-16585.52,0.00013281,2]
[404674473,1770414641359,-13440.81,0.00013469,2]
[404674474,1770414641368,-500.0,0.00013698,2]
[404674475,1770414641378,-500.0,0.00013698,2]
[404674476,1770414641388,-441.42781649,0.00013698,2]
[404674477,1770414641398,-500.0,0.00013698,2]
[404674478,1770414641407,-200.0,0.00013698,2]
[404674479,1770414641416,-504.11677041,0.00013698,2]
[404674480,1770414641425,-500.0,0.00013698,2]
[404674481,1770414641435,-500.0,0.00013698,2]
[404674482,1770414641445,-500.0,0.00013698,2]
[404674483,1770414641454,-500.0,0.00013698,2]
[404674484,1770414641464,-500.0,0.00013698,2]
[404674485,1770414641474,-500.0,0.00013698,2]
[404674486,1770414641483,-500.0,0.00013698,2]
[404674487,1770414641494,-500.0,0.00013698,2]
[404674488,1770414641507,-500.0,0.00013698,2]
[404674489,1770414641517,-500.0,0.00013698,2]
[404674490,1770414641528,-500.0,0.00013698,2]
[404674491,1770414641539,-500.0,0.00013698,2]
[404674492,1770414641550,-377.87779755,0.00013698,2]
[404674493,1770414641563,-500.0,0.00013698,2]
[404674494,1770414641574,-500.0,0.00013698,2]
[404674495,1770414641585,-500.0,0.00013698,2]
[404674496,1770414641596,-500.0,0.00013698,2]
[404674497,1770414641608,-500.0,0.00013698,2]
[404674498,1770414641618,-500.0,0.00013698,2]
[404674499,1770414641628,-500.0,0.00013698,2]
[404674500,1770414641638,-204.13102923,0.00013698,2]
[404674501,1770414641648,-500.0,0.00013698,2]
[404674502,1770414641658,-500.0,0.00013698,2]
[404674503,1770414641668,-500.0,0.00013698,2]
[404674504,1770414641678,-500.0,0.00013698,2]
[404674505,1770414641689,-500.0,0.00013698,2]
[404674506,1770414641700,-446.12869816,0.00013698,2]
[404674507,1770414641711,-500.0,0.00013698,2]
[404674508,1770414641720,-500.0,0.00013698,2]
[404674509,1770414641731,-500.0,0.00013698,2]
[404674510,1770414641744,-500.0,0.00013698,2]
[404674511,1770414641754,-500.0,0.00013698,2]
[404674512,1770414641765,-500.0,0.00013698,2]
[404674513,1770414641776,-500.0,0.00013698,2]
[404674514,1770414641787,-477.29936804,0.00013698,2]
[404674515,1770414641797,-500.0,0.00013698,2]
[404674516,1770414641808,-503.69401691,0.00013698,2]
[404674517,1770414641819,-500.0,0.00013698,2]
[404674518,1770414641829,-500.0,0.00013698,2]
[404674519,1770414641839,-500.0,0.00013698,2]
[404674520,1770414641851,-500.0,0.00013698,2]
[404674521,1770414641861,-500.0,0.00013698,2]
[404674522,1770414641871,-571.90548312,0.00013698,2]
[404674523,1770414641883,-500.0,0.00013698,2]
[404674524,1770414641893,-500.0,0.00013698,2]
[404674525,1770414641903,-500.0,0.00013698,2]
[404674526,1770414641914,-500.0,0.00013698,2]
[404674527,1770414641924,-500.0,0.00013698,2]
[404674528,1770414641935,-500.0,0.00013698,2]
[404674529,1770414641946,-500.0,0.00013698,2]
[404674530,1770414641956,-500.0,0.00013698,2]
[404674531,1770414641966,-532.65205018,0.00013698,2]
[404674532,1770414641975,-500.0,0.00013698,2]
[404674533,1770414641985,-500.0,0.00013698,2]
[404674534,1770414641995,-500.0,0.00013698,2]
[404674535,1770414642005,-500.0,0.00013698,2]
[404674536,1770414642015,-500.0,0.00013698,2]
[404674537,1770414642025,-500.0,0.00013698,2]
[404674538,1770414642036,-500.0,0.00013698,2]
[404674539,1770414642046,-500.0,0.00013698,2]
[404674540,1770414642056,-500.0,0.00013698,2]
[404674541,1770414642068,-500.0,0.00013698,2]
[404674542,1770414642080,-500.0,0.00013698,2]
[404674543,1770414642090,-500.0,0.00013698,2]
[404674544,1770414642100,-500.0,0.00013698,2]
[404674545,1770414642111,-500.0,0.00013698,2]
[404674546,1770414642122,-500.0,0.00013698,2]
[404674547,1770414642132,-516.54058196,0.00013698,2]
[404674548,1770414642144,-500.0,0.00013698,2]
[404674549,1770414642154,-500.0,0.00013698,2]
[404674550,1770414642164,-500.0,0.00013698,2]
[404674551,1770414642175,-500.0,0.00013698,2]
[404674552,1770414642185,-500.0,0.00013698,2]
[404674553,1770414642195,-499.73386374,0.00013698,2]
[404674554,1770414642206,-500.0,0.00013698,2]
[404674555,1770414642217,-500.0,0.00013698,2]
[404674556,1770414642227,-500.0,0.00013698,2]
[404674557,1770414642238,-500.0,0.00013698,2]
[404674558,1770414642248,-500.0,0.00013698,2]
[404674559,1770414642259,-500.0,0.00013698,2]
[404674560,1770414642270,-326.5559361,0.00013698,2]
[404674561,1770414642280,-500.0,0.00013698,2]
[404674562,1770414642291,-500.0,0.00013698,2]
[404674563,1770414642302,-500.0,0.00013698,2]
[404674564,1770414642312,-587.5541255,0.00013698,2]
[404674565,1770414642322,-500.0,0.00013698,2]
[404674566,1770414642333,-523.26417397,0.00013698,2]
[404674567,1770414642344,-500.0,0.00013698,2]
[404674568,1770414642354,-283.9117133,0.00013698,2]
[404674569,1770414642365,-13456.85,0.00013699,2]
[404674570,1770414642376,-7873.41,0.00013699,2]
[404674571,1770414642386,-511.81,0.00013699,2]
[404674572,1770414642397,-500.0,0.00013699,2]
[404674573,1770414642408,-1000.0,0.00013803,2]
[404674574,1770414642418,-1378.87715306,0.00013914,2]
[404674575,1770414642428,-12329.51153523,0.00013958,2]
[404674576,1770414642439,-1000.0,0.00014247,2]
[404674577,1770414642449,-511.81,0.00014384,2]
[404674578,1770414642460,-166.66,0.00014423,2]
[404674579,1770414642472,-166.66,0.00014727,2]
[404674580,1770414642482,-12329.51153523,0.00014748,2]
[404674581,1770414642494,-1500.0,0.00014795,2]
[404674582,1770414642504,-163.6354653,0.00014966,2]
[404674583,1770414642515,-15923.7674275,0.00014966,2]
[404674584,1770414642526,-166.66,0.0001503,2]
[404674585,1770414642537,-511.81,0.00015068,2]
[404674586,1770414642547,-500.0,0.00015277,2]
[404674587,1770414642559,-166.66,0.00015334,2]
[404674588,1770414642569,-1000.0,0.00015342,2]
[404674589,1770414642581,-1000.0,0.00015529,2]
[404674590,1770414642593,-12329.51153523,0.00015538,2]
[404674591,1770414642605,-1378.87715306,0.00015603,2]
[404674592,1770414642619,-166.66,0.00015638,2]
[404674593,1770414642630,-511.81,0.00015753,2]
[404674594,1770414642641,-166.66,0.00015941,2]
[404674595,1770414642652,-453.98370731,0.00016438,2]
[404674596,1770414642663,-511.81,0.00016438,2]
[404674597,1770414642674,-305.85316486,0.00016451,2]
[404674598,1770414642684,-15923.7674275,0.00016491,2]
[404674599,1770414642696,-1901.02614896,0.00016627,2]
[404674600,1770414642706,-1500.0,0.000168,2]
[404674601,1770414642716,-500.0,0.00017,2]
[404674602,1770414642727,-416.0,0.00017179,2]
[404674603,1770414642737,-1500.0,0.000172,2]
[404674604,1770414642747,-1000.0,0.00017254,2]
[404674605,1770414642756,-1378.87715306,0.00017292,2]
[404674606,1770414642766,-200.0,0.00017325,2]
[404674607,1770414642776,-420.07163997,0.00017341,2]
[404674608,1770414642786,-200.0,0.00017341,2]
[404674609,1770414642796,-416.0,0.00017487,2]
[404674610,1770414642807,-416.0,0.00017576,2]
[404674611,1770414642816,-1500.0,0.000176,2]
[404674612,1770414642826,-2998.4080897,0.0001764,2]
[404674613,1770414642836,-1396.2203795,0.00017659,2]
[404674614,1770414642847,-416.0,0.00017669,2]
[404674615,1770414642859,-416.0,0.00017775,2]
[404674616,1770414642870,-416.0,0.00017788,2]
[404674617,1770414642880,-416.0,0.0001779,2]
[404674618,1770414642892,-6624.05669369,0.000178,2]
[404674619,1770414642903,-703.7037,0.0001782,2]
[404674620,1770414642912,-703.70371,0.0001782,2]
[404674621,1770414642922,-560.82728308,0.00017875,2]
[404674622,1770414642931,-25000.0,0.00017891,3]
[404674623,1770414642941,-200.0,0.00017897,2]
[404674624,1770414642950,-25000.0,0.000179,3]
[404674625,1770414642959,-500.0,0.000179,2]
[404674626,1770414642968,-16343.14788591,0.000179,3]
[404674627,1770414642978,-853.34023566,0.000179,2]
[404674628,1770414642988,-1981.0,0.000179,2]
[404674629,1770414642998,-224.46993276,0.00017982,2]
[404674630,1770414643008,-371.16179058,0.00017986,2]
[404674631,1770414643019,-1109.17727203,0.0001799,2]
[404674632,1770414643031,-151.0,0.00017997,2]
[404674633,1770414643043,-300.0,0.00017999,2]
[404674634,1770414643053,-300.0,0.00017999,2]
[404674635,1770414643064,-666.0,0.00017999,2]
[404674636,1770414643078,-300.0,0.00017999,2]
[404674637,1770414643088,-666.0,0.00017999,2]
[404674638,1770414643099,-411.23606988,0.00017999,2]
[404674639,1770414643111,-1119864.56013395,0.00018,2]
[404674640,1770414643130,-1252.2350247,0.00018,2]
[404674641,1770414643143,-1055.828458,0.00018,2]
[404674642,1770414643154,-287.55215019,0.00018,2]
[404674643,1770414645843,-478.51655685,0.00018,2]
[404674644,1770414645867,-337.55947387,0.00018,2]
[404674645,1770414645901,-7126.12863525,0.00018,2]
[404674646,1770414645913,-253.0,0.00018,2]
[404674649,1770414646126,-904.38145112,0.00018,2]
[404674650,1770414646138,-6006.39368264,0.00018,2]
[404674708,1770414647898,-1413.86839989,0.00018,2]
[404674709,1770414647914,-3719.65682238,0.00018,2]
[404674710,1770414663957,7533.0,0.00035616,120]
[404674711,1770414734971,5000.01,8.428e-05,2]
[404674712,1770414734996,5000.01,8.428e-05,2]
[404674713,1770414735021,5000.01,8.428e-05,2]
[404674714,1770414735044,5000.01,8.428e-05,2]
[404674715,1770414735068,5000.01,8.428e-05,2]
[404674716,1770414735093,5000.01,8.428e-05,2]
[404674717,1770414735117,5000.01,8.428e-05,2]
[404674718,1770414735141,5000.01,8.428e-05,2]
[404674719,1770414735166,5000.01,8.428e-05,2]
[404674720,1770414735189,5000.01,8.428e-05,2]
[404674721,1770414735214,10000.01,8.428e-05,2]
[404674722,1770414735239,10000.01,8.428e-05,2]
[404674723,1770414735263,10000.01,8.428e-05,2]
[404674724,1770414735288,10000.01,8.428e-05,2]
[404674725,1770414735313,10000.01,8.428e-05,2]
[404674726,1770414735337,10000.01,8.428e-05,2]
[404674727,1770414735362,10000.01,8.428e-05,2]
[404674728,1770414735386,10000.01,8.428e-05,2]
[404674729,1770414735410,10000.01,8.428e-05,2]
[404674730,1770414735434,10000.01,8.428e-05,2]
[404674731,1770414737873,-8119.18226732,8.428e-05,2]
[404674732,1770414737995,-10000.01,8.428e-05,2]
[404674733,1770414738116,-10000.01,8.428e-05,2]
[404674734,1770414738244,-10000.01,8.428e-05,2]
[404674735,1770414738366,-10000.01,8.428e-05,2]
[404674736,1770414772247,885.79247786,8.328e-05,2]
[404674737,1770414781346,300.0,8.427e-05,2]
[404674738,1770414788319,3814.21752214,7.945e-05,2]
[404674739,1770414788364,1617.20916086,7.945e-05,2]
[404674740,1770414790213,997.807628,8.178e-05,2]
[404674741,1770414797983,853.34023568,8.428e-05,2]
[404674742,1770414841482,300.0,8.427e-05,2]